bitfinex/quotes_SOLUSD_20250130
["timestamp","ask_amount","ask_price","bid_price","bid_amount"]
[1738196926600,0.063,228.15,228.11,12.70700114]
[1738196927115,0.063,228.15,228.09,12.70700114]
[1738196927310,4.446,228.15,228.07,12.70700114]
[1738196928404,4.446,228.15,228.07,17.09150114]
[1738196929621,4.446,228.15,228.07,12.70700114]
[1738196929813,0.50196,228.14,228.03,12.70700114]
[1738196930015,0.50196,228.11,227.99,17.09290114]
[1738196930229,1.09404559,228.11,227.99,17.09290114]
[1738196931214,0.50196,228.09,227.99,17.09290114]
[1738196931517,1.09404559,228.09,227.99,12.70700114]
[1738196932212,20.50196,228.06,227.98,0.03]
[1738196932622,21.09404559,228.06,227.98,0.03]
[1738196933220,0.50196,228.02,227.98,0.03]
[1738196933431,21.09404559,228.02,227.98,0.03]
[1738196933944,20.50196,228.02,227.98,0.03]
[1738196935343,0.59208559,228.04,227.98,0.03]
[1738196935344,4.3848,228.06,227.98,0.03]
[1738196935525,4.3841,228.1,228.01,12.70700114]
[1738196936203,20.50196,228.09,228.01,12.70700114]
[1738196936607,20.50196,228.09,227.98,0.03]
[1738196936608,4.3844,228.08,228.0,20.32206889]
[1738196939222,4.3841,228.1,228.0,24.70796889]
[1738196939426,4.3841,228.1,228.02,20.32206889]
[1738196939620,24.3841,228.1,228.02,20.32206889]
[1738196940507,4.88626,228.09,228.0,20.32206889]
[1738196940703,5.47834559,228.09,227.98,0.03]
[1738196940904,4.88626,228.09,227.98,24.73836889]
[1738196941112,4.88626,228.09,228.0,20.32206889]
[1738196942332,4.88626,228.09,228.0,24.70796889]
[1738196944629,4.3836,228.12,228.04,20.32206889]
[1738196945912,4.3836,228.12,228.06,20.32206889]
[1738196946322,4.3836,228.12,228.04,20.32206889]
[1738196947738,4.88586,228.11,228.02,20.32206889]
[1738196948030,5.47794559,228.11,228.0,20.35206889]
[1738196948429,24.278844,228.07,228.0,0.03]
[1738196948632,0.59208559,228.06,228.0,0.03]
[1738196948836,0.50196,228.03,228.0,0.03]
[1738196950035,0.50196,228.01,228.0,0.03]
[1738196953033,4.88766,228.01,228.0,0.03]
[1738196955319,24.88766,228.01,228.0,0.03]
[1738196956242,4.88766,228.01,228.0,0.03]
[1738196959124,24.88766,228.01,228.0,0.03]
[1738196963530,48.664544,228.01,228.0,0.03]
[1738196963746,0.50196,227.99,227.98,0.03]
[1738196963965,24.87092959,227.99,227.98,0.03]
[1738196964648,0.50196,227.99,227.98,0.03]
[1738196965244,4.88806,227.99,227.98,0.03]
[1738196967251,24.88806,227.99,227.98,0.03]
[1738196970170,4.88806,227.99,227.98,0.03]
[1738196972334,4.3861,227.99,227.98,0.03]
[1738196972541,20.0,228.01,227.98,0.03]
[1738196972738,0.50196,227.99,227.98,0.03]
[1738196973449,0.50196,227.96,227.92,0.03]
[1738196973653,20.0,227.97,227.92,0.03]
[1738196973654,24.278844,227.94,227.92,0.03]
[1738196973957,1.09404559,227.93,227.92,0.03]
[1738196974130,5.48134559,227.93,227.92,0.03]
[1738196975438,4.88926,227.93,227.92,0.03]
[1738196975849,24.88926,227.93,227.92,0.03]
[1738196979251,24.82453328,227.93,227.92,0.03]
[1738196979550,24.76377,227.93,227.92,0.03]
[1738196980957,0.37647,227.88,227.87,0.03]
[1738196981163,0.96855559,227.88,227.87,0.03]
[1738196981350,1.09404559,227.88,227.87,0.03]
[1738196981667,0.50196,227.88,227.87,0.03]
[1738196982363,4.89016,227.88,227.87,0.03]
[1738196982883,5.48224559,227.88,227.87,0.03]
[1738196983774,4.89016,227.88,227.87,0.03]
[1738196983959,5.48224559,227.88,227.87,0.03]
[1738196984670,4.89016,227.88,227.87,0.03]
[1738196986858,24.89016,227.88,227.87,0.03]
[1738196987371,25.48224559,227.88,227.87,0.03]
[1738196987951,0.50196,227.83,227.77,0.03]
[1738196988275,0.59208559,227.82,227.77,0.03]
[1738196989078,4.76607,227.81,227.77,0.03]
[1738196990358,0.37647,227.79,227.77,0.03]
[1738196991154,4.3902,227.78,227.77,0.03]
[1738196993767,4.89216,227.78,227.77,0.03]
[1738196993949,4.3902,227.78,227.77,0.03]
[1738196994379,4.3898,227.8,227.77,0.03]
[1738196994677,0.59208559,227.84,227.77,0.03]
[1738196995384,20.0,227.82,227.77,0.03]
[1738196995883,20.59208559,227.83,227.77,0.03]
[1738196996086,4.76587,227.82,227.77,0.03]
[1738196998281,20.0,227.83,227.77,12.74031336]
[1738196998465,4.3883,227.88,227.82,12.71031336]
[1738196998772,4.3883,227.88,227.78,1.5166]
[1738196998773,4.3875,227.92,227.85,12.71031336]
[1738196998963,4.3875,227.92,227.86,12.71031336]
[1738196999575,0.12549,227.94,227.89,12.71031336]
[1738196999576,20.0,227.93,227.89,12.71031336]
[1738196999964,0.59208559,227.98,227.89,12.71031336]
[1738197000158,4.97878559,227.97,227.86,12.71031336]
[1738197000357,4.3867,227.97,227.89,12.71031336]
[1738197000573,4.4492,227.99,227.93,12.71031336]
[1738197001548,0.50196,227.96,227.86,12.71031336]
[1738197001776,4.3873,227.93,227.84,8.0041]
[1738197002584,0.25098,227.92,227.84,8.0041]
[1738197002874,20.25098,227.92,227.84,8.0041]
[1738197003263,20.0,227.91,227.84,8.0041]
[1738197003459,20.0,227.91,227.84,8.0341]
[1738197004277,4.3878,227.9,227.84,8.0341]
[1738197004862,0.063,227.96,227.87,12.71031336]
[1738197005062,0.063,227.96,227.9,12.71031336]
[1738197005278,0.063,227.96,227.94,12.71031336]
[1738197006790,0.063,227.96,227.95,6.5662]
[1738197008698,0.063,227.96,227.94,1.5849]
[1738197009182,0.063,227.96,227.95,37.14513755]
[1738197010164,0.063,227.96,227.95,12.71031336]
[1738197010894,0.063,227.96,227.95,36.73817736]
[1738197011592,0.063,227.96,227.95,36.98915736]
[1738197013780,0.063,227.99,227.98,0.50196]
[1738197014098,24.4469,228.11,228.04,23.776884]
[1738197014099,0.063,228.11,228.04,23.776884]
[1738197014295,0.063,228.11,228.09,12.71031336]
[1738197016897,0.063,228.11,228.1,24.43433278]
[1738197018290,0.063,228.15,228.1,24.43433278]
[1738197018291,0.063,228.15,228.12,1.0]
[1738197018494,0.063,228.15,228.14,51.69947072]
[1738197018700,0.063,228.19,228.18,36.73817736]
[1738197018871,0.063,228.19,228.18,37.3952318]
[1738197019071,0.063,228.19,228.18,12.71031336]
[1738197019668,0.063,228.19,228.16,12.71031336]
[1738197019976,0.063,228.19,228.17,23.776884]
[1738197020170,0.063,228.19,228.18,12.71031336]
[1738197021098,0.063,228.19,228.16,12.71031336]
[1738197021283,0.063,228.19,228.14,12.71031336]
[1738197021999,0.063,228.19,228.15,23.776884]
[1738197022381,0.063,228.19,228.15,12.71031336]
[1738197023510,0.063,228.19,228.17,12.71031336]
[1738197025308,4.4454,228.19,228.15,12.71031336]
[1738197025615,4.4454,228.19,228.13,12.71031336]
[1738197025781,4.4454,228.19,228.11,12.71031336]
[1738197026589,0.84306559,228.18,228.05,20.36501336]
[1738197026789,0.50196,228.15,228.01,12.71031336]
[1738197027000,1.09404559,228.15,227.99,20.36501336]
[1738197027306,35.3427,228.12,228.01,12.71031336]
[1738197027692,15.3427,228.12,228.03,12.71031336]
[1738197027887,4.3836,228.12,228.05,12.71031336]
[1738197028221,15.3427,228.12,228.09,0.03]
[1738197028515,15.3427,228.12,227.99,18.79961336]
[1738197028516,0.25098,228.11,227.99,18.79961336]
[1738197028685,15.3427,228.12,228.0,23.776884]
[1738197029010,4.3836,228.12,228.03,12.71031336]
[1738197029595,1.6352,228.16,228.05,12.71031336]
[1738197029912,4.3825,228.18,228.07,12.71031336]
[1738197030130,20.0,228.17,228.07,12.71031336]
[1738197030609,0.063,228.19,228.11,12.71031336]
[1738197030808,0.063,228.19,228.15,12.71031336]
[1738197030989,0.063,228.19,228.13,12.71031336]
[1738197032999,4.4453,228.19,228.11,19.15381336]
[1738197033200,4.4453,228.19,228.11,12.71031336]
[1738197035717,4.4453,228.19,228.09,12.71031336]
[1738197037819,4.4453,228.19,228.09,17.09441336]
[1738197038020,0.063,228.19,228.15,12.71031336]
[1738197038602,0.063,228.19,228.13,12.71031336]
[1738197039399,0.063,228.19,228.13,17.09371336]
[1738197041008,0.063,228.19,228.14,28.160084]
[1738197042222,0.063,228.19,228.15,12.71031336]
[1738197042407,0.063,228.19,228.18,23.776884]
[1738197045905,0.063,228.19,228.17,12.71031336]
[1738197046105,0.063,228.19,228.15,12.71031336]
[1738197047238,0.063,228.19,228.18,24.027864]
[1738197047439,0.063,228.19,228.18,24.68493072]
[1738197047836,0.063,228.19,228.18,24.43395072]
[1738197048140,0.063,228.19,228.18,29.06743072]
[1738197049333,0.063,228.19,228.18,23.776884]
[1738197049528,0.063,228.19,228.18,28.159384]
[1738197051043,0.063,228.19,228.17,17.09291336]
[1738197051753,0.063,228.19,228.13,12.71031336]
[1738197051921,0.063,228.19,228.13,17.09361336]
[1738197052635,0.063,228.19,228.15,12.71031336]
[1738197052841,0.063,228.19,228.13,17.09361336]
[1738197053014,0.063,228.19,228.13,40.87049736]
[1738197053337,0.063,228.19,228.18,23.776884]
[1738197054136,0.063,228.19,228.18,24.153354]
[1738197054332,0.063,228.22,228.18,24.153354]
[1738197054333,0.063,228.22,228.21,44.027864]
[1738197054537,0.063,228.22,228.21,57.39513334]
[1738197055239,0.063,228.22,228.21,61.77703334]
[1738197057145,0.063,228.22,228.21,61.90252334]
[1738197057943,0.063,228.22,228.21,62.02801334]
[1738197058154,0.0001,228.24,228.23,25.153354]
[1738197058334,0.0001,228.24,228.23,51.23078697]
[1738197058726,0.0001,228.24,228.23,52.23078697]
[1738197059128,0.0001,228.24,228.23,55.61228697]
[1738197059552,0.0001,228.24,228.23,41.90197361]
[1738197060243,0.0001,228.24,228.23,42.02746361]
[1738197060847,0.0001,228.24,228.23,55.73777697]
[1738197061042,0.0001,228.24,228.23,42.02746361]
[1738197061647,0.0001,228.24,228.23,41.52550361]
[1738197062428,0.0001,228.24,228.23,43.02746361]
[1738197062641,0.0001,228.24,228.23,56.73777697]
[1738197063146,0.063,228.33,228.27,20.50196]
[1738197063341,0.063,228.33,228.32,36.48719736]
[1738197063529,0.063,228.33,228.32,40.86699736]
[1738197064753,0.063,228.33,228.32,12.71031336]
[1738197065045,4.4426,228.33,228.24,12.71031336]
[1738197065371,0.063,228.33,228.28,12.71031336]
[1738197065527,0.063,228.33,228.25,4.381]
[1738197065728,0.063,228.33,228.26,12.71031336]
[1738197066024,4.4426,228.33,228.26,12.71031336]
[1738197066256,4.4426,228.33,228.22,12.71031336]
[1738197066431,1.5611,228.32,228.22,12.71031336]
[1738197066630,8.1355,228.32,228.2,12.71031336]
[1738197066940,0.84306559,228.31,228.2,12.71031336]
[1738197067648,0.25098,228.29,228.18,12.71031336]
[1738197067825,0.25098,228.26,228.15,12.71031336]
[1738197068536,0.25098,228.26,228.16,20.29374244]
[1738197069249,4.3811,228.25,228.16,20.29374244]
[1738197070343,0.84306559,228.29,228.16,20.29374244]
[1738197070526,1.5611,228.32,228.28,20.29374244]
[1738197070849,0.063,228.33,228.3,20.29374244]
[1738197071047,4.4426,228.33,228.25,20.29374244]
[1738197071254,20.0,228.3,228.19,20.29374244]
[1738197071461,4.4426,228.33,228.23,20.29374244]
[1738197071642,4.4426,228.33,228.25,20.29374244]
[1738197071846,0.063,228.33,228.25,20.29374244]
[1738197072163,0.063,228.33,228.27,20.29374244]
[1738197073155,4.4427,228.33,228.25,20.29374244]
[1738197074165,0.063,228.33,228.27,20.29374244]
[1738197074634,0.063,228.33,228.25,20.29374244]
[1738197074953,4.4426,228.33,228.25,20.29374244]
[1738197075456,24.4426,228.33,228.25,20.29374244]
[1738197076556,4.4426,228.33,228.25,20.29374244]
[1738197077069,4.4426,228.33,228.23,24.70514244]
[1738197077254,0.25098,228.32,228.23,0.03]
[1738197077568,20.0,228.3,228.23,0.03]
[1738197078444,0.25098,228.29,228.23,0.03]
[1738197079286,20.25098,228.25,228.23,0.03]
[1738197079453,21.81578,228.25,228.23,0.03]
[1738197079765,21.81578,228.25,228.08,6.3167]
[1738197079766,0.50196,228.22,228.09,4.4141]
[1738197079966,0.25098,228.2,228.09,0.03]
[1738197080764,0.25098,228.21,228.09,4.4141]
[1738197080954,0.25098,228.21,228.09,0.03]
[1738197081775,20.0,228.19,228.09,0.03]
[1738197082078,0.25098,228.16,228.09,0.03]
[1738197083281,0.84306559,228.16,228.09,0.03]
[1738197083550,4.50839,228.16,228.09,0.03]
[1738197084484,0.12549,228.14,228.09,0.03]
[1738197084691,20.0,228.13,228.09,0.03]
[1738197084999,1.6019,228.14,228.09,0.03]
[1738197085000,0.12549,228.11,228.09,0.03]
[1738197085155,0.50196,228.11,228.09,0.03]
[1738197085551,4.88596,228.1,228.09,0.03]
[1738197086390,28.662844,228.1,228.09,0.03]
[1738197087259,4.88596,228.1,228.09,0.03]
[1738197087673,24.88596,228.1,228.09,0.03]
[1738197087989,48.662844,228.1,228.09,0.03]
[1738197088276,48.662844,228.1,228.09,0.0001]
[1738197088475,0.12549,228.05,227.94,24.387]
[1738197088679,0.12549,228.04,227.94,20.0]
[1738197089664,4.63628,228.03,227.93,20.29374244]
[1738197089867,0.25098,228.0,227.91,20.29374244]
[1738197090071,0.25098,228.0,227.89,24.68154244]
[1738197090473,0.25098,228.0,227.91,20.29374244]
[1738197090474,0.12549,228.0,227.91,20.29374244]
[1738197091070,4.51159,228.0,227.91,20.29374244]
[1738197091275,24.51129,228.01,227.91,24.68134244]
[1738197091880,0.12549,228.0,227.91,20.29374244]
[1738197092082,0.50196,227.96,227.86,0.03]
[1738197092282,1.09404559,227.96,227.86,0.03]
[1738197092485,0.25098,227.95,227.86,0.03]
[1738197092785,0.56616678,227.94,227.86,0.03]
[1738197092992,4.3873,227.93,227.86,0.03]
[1738197093489,3.8873,227.93,227.86,0.03]
[1738197094477,20.0,227.89,227.86,0.03]
[1738197094677,0.37647,227.88,227.86,0.03]
[1738197094879,0.91671797,227.88,227.86,0.03]
[1738197095064,4.76487,227.87,227.86,0.03]
[1738197095431,8.1303,227.92,227.86,0.03]
[1738197095688,20.37647,227.88,227.86,0.03]
[1738197095863,0.12549,227.87,227.86,0.03]
[1738197096066,20.0,227.88,227.86,0.03]
[1738197096274,0.94263678,227.87,227.86,0.03]
[1738197096477,1.06812678,227.87,227.86,0.03]
[1738197097187,0.37647,227.79,227.77,0.03]
[1738197097375,0.94263678,227.79,227.77,0.03]
[1738197097566,0.12549,227.78,227.77,0.03]
[1738197097884,0.12549,227.78,227.75,0.03]
[1738197097885,20.0,227.76,227.75,0.03]
[1738197098066,20.56616678,227.76,227.75,0.03]
[1738197098269,21.06812678,227.76,227.75,0.03]
[1738197098476,6.3812,227.79,227.75,0.03]
[1738197098676,23.14,227.82,227.75,0.03]
[1738197098972,20.37647,227.77,227.75,0.03]
[1738197099182,4.76697,227.76,227.75,0.03]
[1738197099382,20.0,227.77,227.75,0.03]
[1738197099579,0.56616678,227.76,227.75,0.03]
[1738197099778,0.50196,227.72,227.69,0.03]
[1738197100098,45.875144,227.7,227.69,0.0001]
[1738197100301,49.015144,227.7,227.69,0.0001]
[1738197100605,0.56616678,227.71,227.69,0.0001]
[1738197100788,0.56616678,227.77,227.69,20.29384244]
[1738197100985,20.0,227.77,227.69,20.29384244]
[1738197101185,0.12549,227.76,227.69,20.29384244]
[1738197101492,20.12549,227.76,227.69,0.0001]
[1738197101678,20.0,227.77,227.69,24.68574244]
[1738197102108,0.12549,227.76,227.69,0.0001]
[1738197102279,0.37647,227.74,227.69,0.0001]
[1738197102683,20.0,227.75,227.69,0.0001]
[1738197103087,0.12549,227.74,227.69,0.0001]
[1738197103286,20.0,227.71,227.69,0.0001]
[1738197103904,0.12549,227.7,227.69,0.0001]
[1738197104104,0.37647,227.7,227.69,0.0001]
[1738197104413,24.278844,227.7,227.69,0.0001]
[1738197105224,28.670544,227.7,227.69,0.0001]
[1738197105586,29.670544,227.7,227.69,0.0001]
[1738197105904,1.0,227.66,227.64,0.03]
[1738197106108,24.84501078,227.65,227.64,0.03]
[1738197106292,0.50196,227.63,227.62,0.03]
[1738197106497,44.278844,227.62,227.61,0.03]
[1738197106793,20.50196,227.62,227.61,0.03]
[1738197106992,0.37647,227.62,227.61,0.03]
[1738197107191,4.76967,227.62,227.61,0.03]
[1738197107415,20.0,227.63,227.61,0.03]
[1738197107609,0.56616678,227.69,227.61,0.03]
[1738197107792,4.3919,227.69,227.61,0.03]
[1738197108193,4.95806678,227.69,227.61,0.03]
[1738197108389,24.278844,227.68,227.61,0.03]
[1738197108596,4.95806678,227.69,227.61,0.03]
[1738197108993,0.56616678,227.69,227.61,0.03]
[1738197109196,4.95746678,227.73,227.61,0.03]
[1738197109627,4.3908,227.75,227.63,20.29374244]
[1738197110323,0.56616678,227.77,227.65,20.29374244]
[1738197110530,0.56616678,227.77,227.63,23.776884]
[1738197110713,6.45,227.84,227.7,20.29374244]
[1738197110923,20.0,227.81,227.68,20.29374244]
[1738197111226,24.51539,227.8,227.69,4.3919]
[1738197111429,0.12549,227.78,227.66,40.29374244]
[1738197111598,4.389,227.84,227.73,20.29374244]
[1738197111939,4.4519,227.85,227.73,20.29374244]
[1738197112300,0.12549,227.84,227.73,20.29374244]
[1738197112500,20.0,227.83,227.73,20.29374244]
[1738197112693,0.56616678,227.83,227.71,20.29374244]
[1738197114408,24.95586678,227.81,227.69,6.4575]
[1738197114597,0.063,227.85,227.73,20.29374244]
[1738197114797,24.4519,227.85,227.73,20.29374244]
[1738197114998,4.4519,227.85,227.73,20.29374244]
[1738197115299,0.063,227.85,227.79,20.29374244]
[1738197117130,0.063,227.85,227.79,24.68364244]
[1738197117431,0.063,227.85,227.76,20.29374244]
[1738197117626,0.063,227.85,227.78,20.29374244]
[1738197117944,4.4518,227.85,227.75,24.68434244]
[1738197118149,0.063,227.85,227.75,24.68434244]
[1738197118311,0.063,227.85,227.77,20.29374244]
[1738197119227,4.4518,227.85,227.75,20.29374244]
[1738197119409,24.4518,227.85,227.75,20.29374244]
[1738197119603,0.94263678,227.84,227.71,20.29374244]
[1738197119822,0.56616678,227.83,227.71,20.29374244]
[1738197120025,0.56616678,227.83,227.69,26.75124244]
[1738197120026,20.37647,227.82,227.69,26.75124244]
[1738197120228,4.4518,227.85,227.73,20.29374244]
[1738197120531,0.063,227.85,227.79,20.29374244]
[1738197121198,0.063,227.85,227.78,4.3901]
[1738197122020,24.4519,227.85,227.73,20.29374244]
[1738197122516,24.4519,227.85,227.73,40.29374244]
[1738197122740,0.063,227.85,227.77,20.29374244]
[1738197122917,0.063,227.85,227.79,20.29374244]
[1738197123318,0.063,227.85,227.77,20.29374244]
[1738197123531,4.4518,227.85,227.77,20.29374244]
[1738197123933,4.4518,227.85,227.81,20.29374244]
[1738197123934,0.063,227.85,227.81,20.29374244]
[1738197124648,0.063,227.85,227.83,20.29374244]
[1738197124946,0.063,227.85,227.84,0.65817716]
[1738197125241,0.063,227.85,227.83,20.29374244]
[1738197125457,0.063,227.85,227.83,24.68284244]
[1738197125622,0.063,227.85,227.84,24.43510949]
[1738197125815,0.063,227.85,227.83,24.68284244]
[1738197126942,0.063,227.85,227.81,20.29374244]
[1738197127646,0.063,227.85,227.81,24.68324244]
[1738197127932,0.063,227.85,227.77,20.29374244]
[1738197128137,0.063,227.85,227.75,20.29374244]
[1738197128438,4.452,227.85,227.75,20.29374244]
[1738197128741,4.452,227.85,227.74,6.6372]
[1738197129239,4.452,227.85,227.77,20.29374244]
[1738197129635,4.452,227.85,227.75,20.29374244]
[1738197129830,4.452,227.85,227.76,4.3905]
[1738197131440,4.452,227.85,227.75,20.29374244]
[1738197131642,4.452,227.85,227.73,20.29374244]
[1738197131857,0.063,227.85,227.75,20.29374244]
[1738197132141,0.063,227.85,227.77,20.29374244]
[1738197132316,0.063,227.85,227.83,20.29374244]
[1738197132520,0.063,227.85,227.84,24.43501884]
[1738197132716,7.21326678,228.04,227.85,0.37647]
[1738197132975,4.4488,228.01,227.92,20.29374244]
[1738197133436,4.4488,228.01,227.94,24.68064244]
[1738197133437,0.063,228.01,227.94,24.68064244]
[1738197133628,0.063,228.01,227.96,20.29374244]
[1738197134029,0.063,228.01,227.94,24.68064244]
[1738197134225,0.063,228.01,227.96,20.29374244]
[1738197135340,0.063,228.01,227.89,26.48474244]
[1738197135526,0.69165678,228.0,227.87,20.29374244]
[1738197135718,0.37647,228.0,227.87,24.68214244]
[1738197136145,0.37647,228.0,227.89,20.29374244]
[1738197136848,20.0,227.98,227.87,20.29374244]
[1738197137154,20.0,227.97,227.87,20.29374244]
[1738197138153,4.95266678,227.97,227.87,20.29374244]
[1738197138468,0.37647,227.96,227.81,24.68324244]
[1738197138647,20.12549,227.94,227.81,24.68324244]
[1738197139467,0.12549,227.92,227.81,20.29374244]
[1738197140159,4.3863,227.98,227.87,20.29374244]
[1738197140328,20.0,227.96,227.87,20.29374244]
[1738197140722,0.063,228.01,227.95,20.29374244]
[1738197140967,0.063,228.01,227.87,1.65801533]
[1738197140968,0.063,228.01,227.99,20.29374244]
[1738197142142,0.063,228.01,228.0,23.776884]
[1738197142463,0.063,228.01,228.0,24.81105649]
[1738197142833,0.063,228.01,228.0,24.93654649]
[1738197143065,0.0001,228.01,228.0,24.93654649]
[1738197144873,0.0001,228.01,228.0,45.23028893]
[1738197145475,0.063,228.08,228.07,20.37647]
[1738197145681,0.063,228.08,228.07,41.32756914]
[1738197146181,0.063,228.08,228.07,45.71216914]
[1738197146485,0.063,228.08,228.07,69.61454314]
[1738197147383,0.0001,228.08,228.07,69.61454314]
[1738197147569,0.063,228.24,228.13,0.37647]
[1738197147891,0.063,228.24,228.19,20.29374244]
[1738197148453,0.063,228.24,228.21,20.29374244]
[1738197148976,0.063,228.24,228.19,20.29374244]
[1738197149152,0.063,228.24,228.17,20.29374244]
[1738197149344,4.4443,228.24,228.15,20.29374244]
[1738197150548,4.4443,228.24,228.17,20.29374244]
[1738197151688,20.0,228.23,228.13,20.29374244]
[1738197151930,20.0,228.21,228.09,20.29374244]
[1738197152341,15.3976,228.24,228.13,20.29374244]
[1738197152342,4.4443,228.24,228.13,20.29374244]
[1738197152633,4.4443,228.24,228.17,20.29374244]
[1738197152823,0.063,228.24,228.19,20.29374244]
[1738197152986,0.063,228.24,228.23,20.29374244]
[1738197153323,0.063,228.24,228.23,44.19611644]
[1738197153484,0.063,228.33,228.27,20.12549]
[1738197153689,0.063,228.33,228.31,20.29374244]
[1738197153891,0.063,228.33,228.31,20.95055547]
[1738197155196,0.063,228.33,228.31,20.29374244]
[1738197155922,0.063,228.33,228.29,20.29374244]
[1738197156241,4.4426,228.33,228.29,20.29374244]
[1738197156532,0.063,228.33,228.32,24.153354]
[1738197156737,0.03,228.36,228.32,24.153354]
[1738197156738,0.03,228.36,228.35,20.37647]
[1738197157031,0.03,228.36,228.35,85.52287043]
[1738197157695,0.03,228.36,228.35,89.90207043]
[1738197158005,0.03,228.36,228.35,89.24552888]
[1738197159520,0.03,228.36,228.35,74.95009644]
[1738197159711,0.03,228.36,228.35,75.60669083]
[1738197161027,0.03,228.36,228.35,75.73218083]
[1738197162241,0.03,228.36,228.35,96.02592327]
[1738197162417,0.03,228.36,228.35,95.36932888]
[1738197162939,0.03,228.38,228.37,0.37647]
[1738197163108,0.03,228.38,228.37,45.22909393]
[1738197163313,0.063,228.4,228.39,0.25098]
[1738197163524,0.063,228.4,228.39,44.97802499]
[1738197165410,0.03,228.42,228.41,0.37647]
[1738197165605,0.03,228.42,228.41,45.10347538]
[1738197165806,0.063,228.56,228.49,20.0]
[1738197166031,0.063,228.56,228.54,20.29374244]
[1738197167450,0.063,228.56,228.55,4.3754]
[1738197167624,0.063,228.56,228.54,20.29374244]
[1738197168017,0.063,228.56,228.54,24.66914244]
[1738197168449,0.063,228.56,228.55,23.776884]
[1738197170250,0.063,228.56,228.54,20.29374244]
[1738197171148,0.063,228.56,228.54,24.66924244]
[1738197171850,0.063,228.56,228.54,20.29374244]
[1738197172155,0.063,228.56,228.52,20.29374244]
[1738197172938,0.063,228.56,228.54,20.29374244]
[1738197174033,0.063,228.56,228.55,23.776884]
[1738197174541,0.063,228.56,228.55,28.152284]
[1738197175425,0.063,228.56,228.55,28.528754]
[1738197175748,0.063,228.56,228.55,29.31032]
[1738197178035,0.063,228.56,228.55,28.528754]
[1738197179835,0.063,228.56,228.55,28.654244]
[1738197181448,0.063,228.56,228.55,28.277774]
[1738197181828,0.063,228.56,228.55,28.528754]
[1738197182351,0.063,228.56,228.55,28.152284]
[1738197182645,0.063,228.56,228.5,20.29374244]
[1738197182849,4.4382,228.56,228.45,0.063]
[1738197183061,20.0,228.53,228.45,0.063]
[1738197183228,0.81714678,228.52,228.45,0.063]
[1738197183425,0.25098,228.5,228.45,0.063]
[1738197183630,20.0,228.53,228.46,20.29374244]
[1738197183841,4.3759,228.52,228.45,0.063]
[1738197184027,20.0,228.53,228.45,0.063]
[1738197184238,4.4383,228.56,228.48,20.29374244]
[1738197184441,0.063,228.56,228.48,20.29374244]
[1738197184637,0.063,228.56,228.55,20.67021244]
[1738197184855,7.7485,228.72,228.58,20.0]
[1738197185029,4.3725,228.71,228.63,20.29374244]
[1738197185430,0.12549,228.7,228.61,20.29374244]
[1738197185653,0.12549,228.7,228.59,20.29374244]
[1738197185834,0.56616678,228.69,228.59,20.29374244]
[1738197186035,4.3729,228.68,228.59,20.29374244]
[1738197186253,0.56616678,228.71,228.61,20.29374244]
[1738197186449,7.7485,228.72,228.63,20.29374244]
[1738197186650,7.7485,228.72,228.64,32.83709159]
[1738197186853,0.12549,228.71,228.62,32.83709159]
[1738197187245,0.56616678,228.7,228.6,32.83709159]
[1738197187557,12.1207,228.72,228.6,32.83709159]
[1738197188260,0.12549,228.71,228.6,37.21139159]
[1738197188441,7.7485,228.72,228.64,32.83709159]